fUST/lending_fUST_20240226
["ID","MTS","AMOUNT","RATE_DAILY","PERIOD"]
[315195565,1708923046003,-500.0,0.00019726,2]
[315195566,1708923046012,-487.01483259,0.00019726,2]
[315195567,1708923046021,-502.0457706,0.00019726,2]
[315195568,1708923046030,-500.0,0.00019726,2]
[315195569,1708923046039,-2876.87,0.00019726,2]
[315195570,1708923046048,-1590.92,0.00019726,2]
[315195571,1708923046057,-442.24473459,0.00019726,2]
[315195572,1708923046066,-500.0,0.00019726,2]
[315195573,1708923046075,-500.0,0.00019726,2]
[315195574,1708923046084,-151.0,0.00019726,2]
[315195575,1708923046094,-500.0,0.00019726,2]
[315195576,1708923046103,-500.0,0.00019726,2]
[315195577,1708923046113,-500.0,0.00019726,2]
[315195578,1708923046122,-844.79,0.00019726,2]
[315195579,1708923046131,-500.0,0.00019726,2]
[315195580,1708923046140,-2190.26,0.00019726,2]
[315195581,1708923046150,-1000.0,0.00019726,2]
[315195582,1708923046159,-500.0,0.00019726,2]
[315195583,1708923046169,-625.28,0.00019726,2]
[315195584,1708923046178,-500.0,0.00019726,2]
[315195585,1708923046188,-2012.34,0.00019726,2]
[315195586,1708923046197,-500.0,0.00019726,2]
[315195587,1708923046206,-500.81546176,0.00019726,2]
[315195588,1708923046216,-501.98549869,0.00019726,2]
[315195589,1708923046226,-500.0,0.00019726,2]
[315195590,1708923046235,-249.10033961,0.00019726,2]
[315195591,1708923046244,-500.0,0.00019726,2]
[315195592,1708923046254,-500.0,0.00019726,2]
[315195594,1708923046263,-500.0,0.00019726,2]
[315195595,1708923046273,-500.0,0.00019726,2]
[315195596,1708923046283,-502.06092799,0.00019726,2]
[315195597,1708923046292,-500.0,0.00019726,2]
[315195598,1708923046302,-500.0,0.00019726,2]
[315195599,1708923046312,-2052.23,0.00019726,2]
[315195600,1708923046322,-500.0,0.00019726,2]
[315195601,1708923046331,-436.52101816,0.00019726,2]
[315195602,1708923046341,-500.0,0.00019726,2]
[315195603,1708923046350,-500.0,0.00019726,2]
[315195604,1708923046361,-22262.59,0.00019726,2]
[315195605,1708923046370,-503.26279382,0.00019726,2]
[315195606,1708923046380,-500.0,0.00019726,2]
[315195607,1708923046390,-503.24638074,0.00019726,2]
[315195608,1708923046400,-507.00886275,0.00019726,2]
[315195609,1708923046521,-501.23396073,0.00019726,2]
[315195610,1708923046531,-620.57114582,0.00019726,2]
[315195611,1708923046540,-616.85,0.00019726,2]
[315195612,1708923046549,-2224.22,0.00019726,2]
[315195613,1708923046558,-500.0,0.00019726,2]
[315195614,1708923046567,-500.0,0.00019726,2]
[315195615,1708923046577,-500.0,0.00019726,2]
[315195616,1708923046586,-151.0,0.00019726,2]
[315195617,1708923046595,-500.0,0.00019726,2]
[315195618,1708923046604,-500.0,0.00019726,2]
[315195619,1708923046613,-151.0,0.00019726,2]
[315195620,1708923046622,-805.16,0.00019726,2]
[315195621,1708923046632,-501.76089687,0.00019726,2]
[315195622,1708923046640,-501.16377799,0.00019726,2]
[315195623,1708923046649,-2405.23,0.00019726,2]
[315195624,1708923046659,-209.81817441,0.00019726,2]
[315195625,1708923046669,-4348.38,0.00019726,2]
[315195626,1708923046678,-1704.52,0.00019726,2]
[315195628,1708923046687,-500.0,0.00019726,2]
[315195630,1708923046696,-336.17917651,0.00019726,2]
[315195631,1708923046872,-165.27596563,0.00019726,2]
[315195632,1708923046881,-500.0,0.00019726,2]
[315195633,1708923046890,-8230.75,0.00019726,2]
[315195634,1708923046900,-500.0,0.00019726,2]
[315195635,1708923046909,-3496.35,0.00019726,2]
[315195636,1708923046919,-500.0,0.00019726,2]
[315195637,1708923046928,-22902.69,0.00019726,2]
[315195638,1708923046937,-1270.54,0.00019726,2]
[315195639,1708923046947,-11233.87,0.00019726,2]
[315195640,1708923046956,-151.0,0.00019726,2]
[315195641,1708923046966,-151.0,0.00019726,2]
[315195642,1708923046975,-500.0,0.00019726,2]
[315195643,1708923046984,-1541.99,0.00019726,2]
[315195644,1708923046993,-500.0,0.00019726,2]
[315195645,1708923047002,-331.05449464,0.00019726,2]
[315195646,1708923047011,-3074.48,0.00019726,2]
[315195647,1708923047020,-406.90252759,0.00019726,2]
[315195648,1708923047030,-1654.62,0.00019726,2]
[315195649,1708923047040,-500.0,0.00019726,2]
[315195650,1708923047049,-500.0,0.00019726,2]
[315195651,1708923047058,-500.0,0.00019726,2]
[315195652,1708923047066,-151.0,0.00019726,2]
[315195653,1708923047076,-1734.45665706,0.00019726,2]
[315195654,1708923047088,-809.96960681,0.00019726,2]
[315195655,1708923047112,-222.31373613,0.00019726,2]
[315195656,1708923047121,-393.52901868,0.00019726,2]
[315195657,1708923047240,-500.0,0.00019178,2]
[315195658,1708923047249,-507.78,0.00019452,2]
[315195659,1708923047259,-108.18773581,0.00019726,2]
[315195660,1708923047268,-2828.30716465,0.0001989,2]
[315195752,1708924238601,-653.04920302,0.00018869,2]
[315195754,1708924238611,-367.98873477,0.0001887,2]
[315195757,1708924238621,-502.44170262,0.00018898,2]
[315195758,1708924238631,-150.0,0.000189,2]
[315195760,1708924238640,-626.23930632,0.00019022,2]
[315195762,1708924238649,-500.0,0.00019178,2]
[315195764,1708924238659,-205.67442968,0.00019178,2]
[315195766,1708924238668,-500.5519328,0.00019178,2]
[315195768,1708924238677,-500.0,0.00019178,2]
[315195770,1708924238686,-500.0,0.00019178,2]
[315195772,1708924238696,-500.0,0.00019178,2]
[315195774,1708924238708,-500.0,0.00019178,2]
[315195776,1708924238717,-500.0,0.00019178,2]
[315195778,1708924238726,-500.0,0.00019178,2]
[315195780,1708924238735,-501.39191292,0.00019178,2]
[315195782,1708924238744,-503.01168124,0.00019178,2]
[315195784,1708924238754,-500.0,0.00019178,2]
[315195786,1708924238763,-628.63688797,0.00019178,2]
[315195788,1708924238772,-500.0,0.00019178,2]
[315195790,1708924238782,-500.0,0.00019178,2]
[315195792,1708924238793,-500.0,0.00019178,2]
[315195794,1708924238802,-581.13636128,0.00019178,2]
[315195796,1708924238812,-500.0,0.00019178,2]
[315195798,1708924238821,-500.0,0.00019178,2]
[315195800,1708924238830,-500.0,0.00019178,2]
[315195802,1708924238839,-500.0,0.00019178,2]
[315195804,1708924238848,-266.2521577,0.00019178,2]
[315195806,1708924238858,-500.0,0.00019178,2]
[315195808,1708924238868,-1356.05,0.00019178,2]
[315195810,1708924238877,-500.0,0.00019178,2]
[315195811,1708924238886,-500.0,0.00019178,2]
[315195812,1708924238895,-500.0,0.00019178,2]
[315195813,1708924238906,-500.0,0.00019178,2]
[315195814,1708924238915,-559.15393256,0.00019178,2]
[315195815,1708924238924,-500.0,0.00019178,2]
[315195816,1708924238933,-500.0,0.00019178,2]
[315195817,1708924238943,-500.0,0.00019178,2]
[315195818,1708924238951,-500.0,0.00019178,2]
[315195819,1708924238960,-483.72738854,0.00019178,2]
[315195820,1708924238970,-500.24182891,0.00019178,2]
[315195821,1708924238979,-500.0,0.00019178,2]
[315195822,1708924238988,-500.0,0.00019178,2]
[315195823,1708924238997,-500.0,0.00019178,2]
[315195824,1708924239006,-500.0,0.00019178,2]
[315195825,1708924239016,-500.0,0.00019178,2]
[315195826,1708924239025,-500.0,0.00019178,2]
[315195827,1708924239036,-500.0,0.00019178,2]
[315195828,1708924239046,-500.0,0.00019178,2]
[315195829,1708924239055,-500.0,0.00019178,2]
[315195830,1708924239063,-500.0,0.00019178,2]
[315195831,1708924239073,-500.0,0.00019178,2]
[315195832,1708924239082,-500.0,0.00019178,2]
[315195833,1708924239091,-500.0,0.00019178,2]
[315195834,1708924239100,-500.0,0.00019178,2]
[315195836,1708924239109,-500.0,0.00019178,2]
[315195837,1708924239118,-500.0,0.00019178,2]
[315195839,1708924239127,-451.87442518,0.00019178,2]
[315195841,1708924239136,-500.0,0.00019178,2]
[315195843,1708924239146,-500.0,0.00019178,2]
[315195845,1708924239155,-500.0,0.00019178,2]
[315195847,1708924239164,-500.0,0.00019178,2]
[315195849,1708924239174,-501.86676046,0.00019178,2]
[315195851,1708924239183,-220.42165296,0.00019178,2]
[315195854,1708924239193,-500.0,0.00019178,2]
[315195856,1708924239204,-500.0,0.00019178,2]
[315195858,1708924239214,-1774.16,0.00019178,2]
[315195860,1708924239223,-500.0,0.00019178,2]
[315195862,1708924239233,-500.0,0.00019178,2]
[315195864,1708924239242,-500.91762408,0.00019178,2]
[315195866,1708924239252,-500.0,0.00019178,2]
[315195868,1708924239261,-581.42135505,0.00019178,2]
[315195870,1708924239270,-500.25009152,0.00019178,2]
[315195872,1708924239279,-500.0,0.00019178,2]
[315195874,1708924239288,-773.14,0.00019178,2]
[315195876,1708924239298,-500.0,0.00019178,2]
[315195878,1708924239307,-500.0,0.00019178,2]
[315195880,1708924239316,-500.0,0.00019178,2]
[315195882,1708924239326,-500.0,0.00019178,2]
[315195884,1708924239335,-501.61062038,0.00019178,2]
[315195886,1708924239345,-500.0,0.00019178,2]
[315195888,1708924239354,-500.0,0.00019178,2]
[315195890,1708924239363,-500.39582415,0.00019178,2]
[315195892,1708924239373,-500.0,0.00019178,2]
[315195894,1708924239382,-500.0,0.00019178,2]
[315195896,1708924239391,-601.83460681,0.00019178,2]
[315195898,1708924239400,-502.75767001,0.00019178,2]
[315195900,1708924239409,-500.0,0.00019178,2]
[315195902,1708924239418,-625.55,0.00019178,2]
[315195904,1708924239427,-500.0,0.00019178,2]
[315195906,1708924239436,-500.0,0.00019178,2]
[315195908,1708924239445,-500.0,0.00019178,2]
[315195910,1708924239454,-500.0,0.00019178,2]
[315195912,1708924239463,-500.0,0.00019178,2]
[315195913,1708924239472,-200.0,0.00019178,2]
[315195916,1708924239481,-500.0,0.00019178,2]
[315195918,1708924239491,-500.0,0.00019178,2]
[315195920,1708924239500,-500.0,0.00019178,2]
[315195921,1708924239509,-500.0,0.00019178,2]
[315195923,1708924239518,-368.55067157,0.00019178,2]
[315195925,1708924239527,-500.0,0.00019178,2]
[315195927,1708924239536,-500.0,0.00019178,2]
[315195929,1708924239545,-417.97011128,0.00019178,2]
[315195932,1708924239555,-500.0,0.00019178,2]
[315195933,1708924239563,-502.56636527,0.00019178,2]
[315195935,1708924239572,-500.0,0.00019178,2]
[315195937,1708924239582,-500.0,0.00019178,2]
[315195939,1708924239591,-177.56440176,0.00019178,2]
[315195941,1708924239600,-500.0,0.00019178,2]
[315195944,1708924239610,-500.0,0.00019178,2]
[315195946,1708924239620,-500.0,0.00019178,2]
[315195947,1708924239630,-500.0,0.00019178,2]
[315195950,1708924239639,-500.0,0.00019178,2]
[315195952,1708924239649,-625.28,0.00019178,2]
[315195954,1708924239658,-500.0,0.00019178,2]
[315195956,1708924239666,-500.0,0.00019178,2]
[315195958,1708924239676,-500.0,0.00019178,2]
[315195960,1708924239685,-500.0,0.00019178,2]
[315195962,1708924239694,-500.0,0.00019178,2]
[315195963,1708924239704,-500.0,0.00019178,2]
[315195965,1708924239714,-614.77234965,0.00019178,2]
[315195967,1708924239723,-500.0,0.00019178,2]
[315195969,1708924239733,-506.6715186,0.00019178,2]
[315195971,1708924239742,-500.0,0.00019178,2]
[315195972,1708924239751,-500.0,0.00019178,2]
[315195973,1708924239760,-500.0,0.00019178,2]
[315195974,1708924239770,-500.0,0.00019178,2]
[315195975,1708924239781,-500.0,0.00019178,2]
[315195976,1708924239790,-500.0,0.00019178,2]
[315195977,1708924239799,-500.0,0.00019178,2]
[315195978,1708924239808,-501.29341778,0.00019178,2]
[315195979,1708924239818,-500.0,0.00019178,2]
[315195980,1708924239827,-500.0,0.00019178,2]
[315195981,1708924239836,-500.0,0.00019178,2]
[315195982,1708924239845,-500.0,0.00019178,2]
[315195983,1708924239855,-500.0,0.00019178,2]
[315195984,1708924239863,-500.0,0.00019178,2]
[315195985,1708924239872,-500.0,0.00019178,2]
[315195986,1708924239882,-359.8403748,0.00019178,2]
[315195987,1708924239890,-500.0,0.00019178,2]
[315195988,1708924239899,-501.0884164,0.00019178,2]
[315195989,1708924239908,-500.0,0.00019178,2]
[315195990,1708924239918,-500.0,0.00019178,2]
[315195991,1708924239925,-500.76681216,0.00019178,2]
[315195992,1708924239934,-500.0,0.00019178,2]
[315195993,1708924239943,-2297.51,0.00019178,2]
[315195994,1708924239952,-234.57397735,0.00019178,2]
[315195996,1708924239961,-500.0,0.00019178,2]
[315195997,1708924239970,-500.0,0.00019178,2]
[315195998,1708924239980,-500.0,0.00019178,2]
[315195999,1708924239989,-500.0,0.00019178,2]
[315196000,1708924239998,-500.3462092,0.00019178,2]
[315196001,1708924240007,-500.0,0.00019178,2]
[315196002,1708924240016,-500.6043484,0.00019178,2]
[315196003,1708924240026,-500.0,0.00019178,2]
[315196004,1708924240035,-500.0,0.00019178,2]
[315196005,1708924240044,-500.0,0.00019178,2]
[315196006,1708924240053,-500.0,0.00019178,2]
[315196007,1708924240062,-1783.95,0.00019178,2]
[315196008,1708924240071,-500.58116796,0.00019178,2]
[315196009,1708924240080,-500.0,0.00019178,2]
[315196010,1708924240090,-500.0,0.00019178,2]
[315196011,1708924240099,-500.0,0.00019178,2]
[315196012,1708924240108,-500.0,0.00019178,2]
[315196013,1708924240117,-500.0,0.00019178,2]
[315196014,1708924240126,-500.0,0.00019178,2]
[315196015,1708924240135,-500.0,0.00019178,2]
[315196016,1708924240144,-500.0,0.00019178,2]
[315196017,1708924240153,-500.0,0.00019178,2]
[315196018,1708924240162,-491.43084547,0.00019178,2]
[315196019,1708924240171,-500.0,0.00019178,2]
[315196020,1708924240181,-501.13519098,0.00019178,2]
[315196022,1708924240190,-647.66354051,0.00019178,2]
[315196023,1708924240199,-500.0,0.00019178,2]
[315196024,1708924240208,-500.0,0.00019178,2]
[315196025,1708924240217,-500.0,0.00019178,2]
[315196026,1708924240226,-500.0,0.00019178,2]
[315196027,1708924240235,-500.0,0.00019178,2]
[315196028,1708924240244,-500.0,0.00019178,2]
[315196029,1708924240253,-266.51557641,0.00019178,2]
[315196030,1708924240261,-500.0,0.00019178,2]
[315196031,1708924240270,-242.83946742,0.00019178,2]
[315196032,1708924240279,-500.0,0.00019178,2]
[315196033,1708924240288,-500.0,0.00019178,2]
[315196034,1708924240297,-500.0,0.00019178,2]
[315196035,1708924240306,-500.0,0.00019178,2]
[315196036,1708924240315,-1039.45,0.00019178,2]
[315196037,1708924240324,-151.0,0.00019178,2]
[315196038,1708924240333,-500.0,0.00019178,2]
[315196039,1708924240342,-500.0,0.00019178,2]
[315196040,1708924240351,-500.0,0.00019178,2]
[315196041,1708924240359,-500.0,0.00019178,2]
[315196042,1708924240368,-500.0,0.00019178,2]
[315196043,1708924240378,-500.0,0.00019178,2]
[315196044,1708924240387,-500.0,0.00019178,2]
[315196045,1708924240396,-267.02389564,0.00019178,2]
[315196046,1708924240404,-500.0,0.00019178,2]
[315196047,1708924240416,-170.14503892,0.00019178,2]
[315196048,1708924240425,-774.92,0.00019178,2]
[315196049,1708924240433,-500.0,0.00019178,2]
[315196050,1708924240443,-500.0,0.00019178,2]
[315196051,1708924240451,-500.0,0.00019178,2]
[315196052,1708924240460,-500.0,0.00019178,2]
[315196053,1708924240470,-1528.2,0.00019178,2]
[315196054,1708924240478,-500.0,0.00019178,2]
[315196055,1708924240487,-500.0,0.00019178,2]
[315196056,1708924240496,-205.48522156,0.00019178,2]
[315196057,1708924240505,-500.0,0.00019178,2]
[315196058,1708924240514,-11388.11,0.00019178,2]
[315196059,1708924240524,-500.0,0.00019178,2]
[315196060,1708924240532,-499.53437694,0.00019178,2]
[315196061,1708924240542,-291.00212191,0.00019178,2]
[315196062,1708924240552,-500.0,0.00019178,2]
[315196063,1708924240561,-500.0,0.00019178,2]
[315196064,1708924240570,-1662.0,0.00019178,2]
[315196065,1708924240579,-500.0,0.00019178,2]
[315196066,1708924240588,-4350.42,0.00019178,2]
[315196067,1708924240598,-500.0,0.00019178,2]
[315196068,1708924240607,-3002.04,0.00019178,2]
[315196069,1708924240616,-827.43,0.00019178,2]
[315196070,1708924240625,-500.0,0.00019178,2]
[315196071,1708924240634,-500.0,0.00019178,2]
[315196072,1708924240644,-884.96,0.00019178,2]
[315196073,1708924240653,-500.0,0.00019178,2]
[315196074,1708924240662,-500.0,0.00019178,2]
[315196075,1708924240672,-2818.62,0.00019178,2]
[315196076,1708924240681,-500.35866528,0.00019178,2]
[315196077,1708924240691,-500.0,0.00019178,2]
[315196078,1708924240701,-2095.24,0.00019178,2]
[315196079,1708924240711,-500.0,0.00019178,2]
[315196080,1708924240721,-500.0,0.00019178,2]
[315196081,1708924240730,-543.31285923,0.00019178,2]
[315196082,1708924240739,-1000.0,0.00019178,2]
[315196083,1708924240749,-500.0,0.00019178,2]
[315196084,1708924240759,-500.0,0.00019178,2]
[315196085,1708924240769,-500.0,0.00019178,2]
[315196086,1708924240780,-506.82130633,0.00019178,2]
[315196087,1708924240789,-500.0,0.00019178,2]
[315196088,1708924240799,-500.43159131,0.00019178,2]
[315196089,1708924240808,-500.0,0.00019178,2]
[315196090,1708924240817,-2280.26,0.00019178,2]
[315196091,1708924240826,-508.76,0.00019178,2]
[315196092,1708924240835,-500.0,0.00019178,2]
[315196093,1708924240844,-500.0,0.00019178,2]
[315196094,1708924240853,-500.0,0.00019178,2]
[315196095,1708924240862,-510.36105547,0.00019178,2]
[315196096,1708924240962,-2134.82,0.00019178,2]
[315196097,1708924240972,-501.16229543,0.00019178,2]
[315196098,1708924240981,-500.0,0.00019178,2]
[315196099,1708924240990,-635.83996825,0.00019178,2]
[315196100,1708924241000,-500.0,0.00019178,2]
[315196101,1708924241009,-573.72782983,0.00019178,2]
[315196102,1708924241018,-500.0,0.00019178,2]
[315196103,1708924241027,-500.0,0.00019178,2]
[315196104,1708924241036,-500.0,0.00019178,2]
[315196105,1708924241045,-500.0,0.00019178,2]
[315196106,1708924241054,-500.0,0.00019178,2]
[315196107,1708924241063,-500.0,0.00019178,2]
[315196108,1708924241072,-500.20438763,0.00019178,2]
[315196109,1708924241081,-1000.0,0.00019178,2]
[315196110,1708924241090,-501.52534223,0.00019178,2]
[315196111,1708924241099,-500.0,0.00019178,2]
[315196112,1708924241108,-500.0,0.00019178,2]
[315196113,1708924241117,-500.0,0.00019178,2]
[315196114,1708924241127,-500.0,0.00019178,2]
[315196115,1708924241136,-500.0,0.00019178,2]
[315196116,1708924241145,-500.43962735,0.00019178,2]
[315196117,1708924241154,-500.0,0.00019178,2]
[315196118,1708924241163,-23200.88,0.00019178,2]
[315196119,1708924241172,-500.0,0.00019178,2]
[315196120,1708924241182,-500.0,0.00019178,2]
[315196121,1708924241190,-500.0,0.00019178,2]
[315196122,1708924241200,-268.97832651,0.00019178,2]
[315196123,1708924241209,-500.0,0.00019178,2]
[315196124,1708924241218,-500.0,0.00019178,2]
[315196125,1708924241227,-518.49613271,0.00019178,2]
[315196126,1708924241236,-592.7,0.00019178,2]
[315196127,1708924241245,-592.7,0.00019178,2]
[315196128,1708924241254,-500.0,0.00019178,2]
[315196129,1708924241263,-592.7,0.00019178,2]
[315196130,1708924241272,-592.7,0.00019178,2]
[315196131,1708924241281,-592.7,0.00019178,2]
[315196132,1708924241290,-500.0,0.00019178,2]
[315196133,1708924241298,-500.0,0.00019178,2]
[315196134,1708924241307,-1777.55,0.00019178,2]
[315196135,1708924241316,-500.0,0.00019178,2]
[315196136,1708924241326,-500.0,0.00019178,2]
[315196137,1708924241335,-643.03,0.00019178,2]
[315196138,1708924241344,-2316.66,0.00019178,2]
[315196139,1708924241353,-500.0,0.00019178,2]
[315196140,1708924241362,-500.0,0.00019178,2]
[315196141,1708924241371,-501.56333098,0.00019178,2]
[315196142,1708924241381,-8228.19,0.00019178,2]
[315196143,1708924241390,-500.0,0.00019178,2]
[315196144,1708924241401,-500.0,0.00019178,2]
[315196145,1708924241410,-500.0,0.00019178,2]
[315196146,1708924241419,-500.0,0.00019178,2]
[315196147,1708924241429,-500.0,0.00019178,2]
[315196148,1708924241439,-500.0,0.00019178,2]
[315196149,1708924241448,-500.0,0.00019178,2]
[315196150,1708924241458,-510.91242024,0.00019178,2]
[315196151,1708924241467,-625.93045909,0.00019178,2]
[315196152,1708924241476,-500.0,0.00019178,2]
[315196153,1708924241485,-593.05407186,0.00019178,2]
[315196154,1708924241494,-500.0,0.00019178,2]
[315196155,1708924241503,-501.64126338,0.00019178,2]
[315196156,1708924241511,-3490.18,0.00019178,2]
[315196157,1708924241520,-838.64,0.00019178,2]
[315196158,1708924241529,-3075.6,0.00019178,2]
[315196159,1708924241538,-4538.35,0.00019178,2]
[315196160,1708924241547,-500.0,0.00019178,2]
[315196161,1708924241557,-500.0,0.00019178,2]
[315196162,1708924241566,-1541.61,0.00019178,2]
[315196163,1708924241575,-2509.56,0.00019178,2]
[315196164,1708924241584,-500.0,0.00019178,2]
[315196165,1708924241594,-500.0,0.00019178,2]
[315196166,1708924241603,-500.0,0.00019178,2]
[315196167,1708924241612,-500.0,0.00019178,2]
[315196168,1708924241622,-500.0,0.00019178,2]
[315196169,1708924241632,-3179.94,0.00019178,2]
[315196170,1708924241641,-22919.48,0.00019178,2]
[315196171,1708924241650,-1651.22,0.00019178,2]
[315196172,1708924241659,-500.0,0.00019178,2]
[315196173,1708924241669,-500.0,0.00019178,2]
[315196174,1708924241678,-500.0,0.00019178,2]
[315196175,1708924241687,-500.52146874,0.00019178,2]
[315196176,1708924241696,-1269.93,0.00019178,2]
[315196177,1708924241708,-500.0,0.00019178,2]
[315196178,1708924241717,-755.31,0.00019178,2]
[315196179,1708924241726,-500.0,0.00019178,2]
[315196180,1708924241735,-500.0,0.00019178,2]
[315196181,1708924241745,-2267.83,0.00019178,2]
[315196182,1708924241754,-500.0,0.00019178,2]
[315196183,1708924241764,-500.0,0.00019178,2]
[315196184,1708924241773,-500.0,0.00019178,2]
[315196185,1708924241783,-400.24472666,0.00019178,2]
[315196186,1708924241792,-165.222576,0.00019178,2]
[315196187,1708924241801,-166.666666,0.00019178,2]
[315196188,1708924241810,-165.70495,0.00019178,2]
[315196189,1708924241819,-174.0,0.000194,2]
[315196190,1708924241828,-592.7,0.00019451,2]
[315196191,1708924241837,-592.7,0.00019451,2]
[315196192,1708924241846,-592.7,0.00019451,2]
[315196193,1708924241854,-592.7,0.00019451,2]
[315196194,1708924241864,-592.7,0.00019451,2]
[315196195,1708924241873,-500.0,0.00019452,2]
[315196196,1708924241883,-500.0,0.00019452,2]
[315196197,1708924241892,-503.93844908,0.00019452,2]
[315196198,1708924241901,-503.85838684,0.00019452,2]
[315196199,1708924241910,-435.78314864,0.00019452,2]
[315196200,1708924241919,-500.0,0.00019452,2]
[315196201,1708924241928,-500.0,0.00019452,2]
[315196202,1708924241937,-311.1793471,0.00019452,2]
[315196203,1708924241946,-501.12560342,0.00019452,2]
[315196204,1708924241955,-500.0,0.00019452,2]
[315196205,1708924241963,-500.0,0.00019452,2]
[315196206,1708924241972,-223.81661132,0.00019452,2]
[315196207,1708924241981,-500.0,0.00019452,2]
[315196208,1708924241989,-179.15482802,0.00019452,2]
[315196209,1708924241998,-500.0,0.00019452,2]
[315196210,1708924242007,-1356.05,0.00019452,2]
[315196211,1708924242017,-500.0,0.00019452,2]
[315196212,1708924242026,-500.0,0.00019452,2]
[315196213,1708924242035,-500.0,0.00019452,2]
[315196214,1708924242044,-500.0,0.00019452,2]
[315196215,1708924242053,-513.93926207,0.00019452,2]
[315196216,1708924242062,-181.78139864,0.00019452,2]
[315196217,1708924242072,-500.0,0.00019452,2]
[315196218,1708924242081,-500.0,0.00019452,2]
[315196219,1708924242090,-500.0,0.00019452,2]
[315196220,1708924242099,-501.03015626,0.00019452,2]
[315196221,1708924242109,-571.9240967,0.00019452,2]
[315196222,1708924242117,-500.0,0.00019452,2]
[315196223,1708924242127,-500.0,0.00019452,2]
[315196224,1708924242136,-500.71576396,0.00019452,2]
[315196225,1708924242145,-500.0,0.00019452,2]
[315196226,1708924242154,-500.0,0.00019452,2]
[315196227,1708924242163,-500.0,0.00019452,2]
[315196228,1708924242172,-501.16512852,0.00019452,2]
[315196229,1708924242181,-500.0,0.00019452,2]
[315196230,1708924242190,-500.0,0.00019452,2]
[315196231,1708924242199,-500.0,0.00019452,2]
[315196232,1708924242208,-500.0,0.00019452,2]
[315196233,1708924242218,-500.0,0.00019452,2]
[315196234,1708924242227,-500.0,0.00019452,2]
[315196235,1708924242237,-500.0,0.00019452,2]
[315196236,1708924242246,-500.0,0.00019452,2]
[315196237,1708924242255,-1774.16,0.00019452,2]
[315196238,1708924242264,-501.66893489,0.00019452,2]
[315196239,1708924242273,-500.0,0.00019452,2]
[315196242,1708924242283,-500.0,0.00019452,2]
[315196244,1708924242293,-773.14,0.00019452,2]
[315196246,1708924242302,-500.0,0.00019452,2]
[315196248,1708924242311,-505.82718587,0.00019452,2]
[315196250,1708924242321,-500.0,0.00019452,2]
[315196251,1708924242330,-500.0,0.00019452,2]
[315196252,1708924242339,-500.0,0.00019452,2]
[315196253,1708924242348,-507.460159,0.00019452,2]
[315196254,1708924242357,-350.38082204,0.00019452,2]
[315196255,1708924242367,-500.0,0.00019452,2]
[315196256,1708924242376,-548.47261146,0.00019452,2]
[315196257,1708924242386,-625.55,0.00019452,2]
[315196258,1708924242395,-397.25117169,0.00019452,2]
[315196259,1708924242404,-500.0,0.00019452,2]
[315196260,1708924242412,-501.32076136,0.00019452,2]
[315196261,1708924242421,-501.00129828,0.00019452,2]
[315196262,1708924242431,-500.0,0.00019452,2]
[315196263,1708924242440,-516.12591653,0.00019452,2]